Workbook

Sheet 一2017预算收入
A1: 表一
A2: 2017年经技区一般公共预算收入执行情况表
F3: 单位：万元
A4: 项 目 | B4: 2016年 决算数 | C4: 2017年 预算数 | D4: 2017年执行数
C5: 金额 | D5: 金额 | E5: 占预算% | F5: 同口径 增长%
A6: 一、税收收入 | B6: =SUM(B7:B20) -> 219629 | C6: =SUM(C7:C20) -> 241454 | D6: =SUM(D7:D20) -> 233158 | E6: =D6/C6*100 -> 96.6 | F6: 8.3
A7: 国内增值税 | B7: 53291 | C7: 74000 | D7: 63210 | E7: =D7/C7*100 -> 85.4 | F7: -0.5
A8: 改征增值税 | B8: 13616 | C8: 36590 | D8: 31891 | E8: 87.2 | F8: 151.5
A9: 营业税 | B9: 33453 | D9: 363 | F9: -98.2
A10: 企业所得税 | B10: 30001 | C10: 35901 | D10: 34702 | E10: 96.7 | F10: =(D10/B10-1)*100 -> 15.7
A11: 个人所得税 | B11: 5596 | C11: 6323 | D11: 8783 | E11: 138.9 | F11: 57.0
A12: 资源税 | B12: 61 | C12: 70 | D12: 203 | E12: 290.0 | F12: 232.8
A13: 城市维护建设税 | B13: 13785 | C13: 15577 | D13: 14163 | E13: 90.9 | F13: 2.7
A14: 房产税 | B14: 9147 | C14: 10336 | D14: 10162 | E14: 98.3 | F14: 11.1
A15: 印花税 | B15: 3184 | C15: 3598 | D15: 3190 | E15: 88.7 | F15: 0.2
A16: 城镇土地使用税 | B16: 19516 | C16: 22053 | D16: 24671 | E16: 111.9 | F16: 26.4
A17: 土地增值税 | B17: 12702 | C17: 14353 | D17: 17646 | E17: 122.9 | F17: 38.9
A18: 车船税 | B18: 1178 | C18: 1331 | D18: 1731 | E18: 130.1 | F18: 46.9
A19: 耕地占用税 | B19: 13838 | C19: 9227 | D19: 6120 | E19: 66.3 | F19: -55.8
A20: 契税 | B20: 10261 | C20: 12095 | D20: 16323 | E20: 135.0 | F20: 59.1
A21: 二、非税收入 | B21: =SUM(B22:B29) -> 27915 | C21: =SUM(C22:C29) -> 23689 | D21: 32029 | E21: 135.2 | F21: 14.7
A22: 专项收入 | B22: 12329 | C22: 13923 | D22: 11886 | E22: 85.4 | F22: -3.6
A23: 行政事业性收费收入 | B23: 1219 | C23: 2019 | D23: 1175 | E23: 58.2 | F23: -3.6
A24: 罚没收入 | B24: 778 | C24: 1015 | D24: 960 | E24: 94.6 | F24: 23.4
A25: 国有资本经营收入 | B25: 12350 | C25: 3614 | D25: 5000 | E25: 138.4 | F25: -59.5
A26: 国有资源(资产)有偿使用收入 | B26: 1149 | C26: 3018 | D26: 8898 | E26: 294.8 | F26: 674.4
A27: 捐赠收入 | D27: 4110
A28: 政府住房基金收入
A29: 其他收入 | B29: 90 | C29: 100 | E29: 0.0
A30: 本年收入合计 | B30: =B6+B21 -> 247544 | C30: =C6+C21 -> 265143 | D30: =D6+D21 -> 265187 | E30: 100.0 | F30: 9.0
A31: 转移性收入 | B31: =SUM(B32:B37) -> 63442 | C31: =SUM(C32:C37) -> 32809 | D31: 83223
A32: 地方政府新增一般债券收入 | B32: 4000
A33: 返还性收入 | B33: 6142 | C33: 6142 | D33: 6616
A34: 一般性转移支付收入 | B34: 22925 | C34: 17672 | D34: 31271
A35: 专项转移支付收入 | B35: 26600 | C35: 625 | D35: 33201
A36: 调入资金等 | B36: 682 | D36: 3765
A37: 上年结转及结余收入 | B37: 3093 | C37: 8370 | D37: 8370
A38: 收入总计 | B38: =B30+B31 -> 310986 | C38: =C30+C31 -> 297952 | D38: =D30+D31 -> 348410
A39: 另外：地方政府置换一般债券收入 | B39: 167800 | C39: 12400 | D39: 12400

Sheet 二2017预算支出执行
A1: 表二
A2: 2017年经技区一般公共预算支出执行情况表
F3: 单位：万元
A4: 项 目 | B4: 2016年 决算数 | C4: 2017年 预算数 | D4: 2017年执行数
C5: 金额 | D5: 金额 | E5: 占预算% | F5: 同口径 增长%
A6: 一、一般公共服务 | B6: 26433 | C6: 30154 | D6: 26775 | E6: =D6/C6*100 -> 88.8 | F6: =D6/B6*100-100 -> 1.3
A7: 二、国防支出 | B7: 38 | C7: 71 | D7: 89 | E7: =D7/C7*100 -> 125.4 | F7: =D7/B7*100-100 -> 134.2
A8: 三、公共安全支出 | B8: 9343 | C8: 8113 | D8: 9673 | E8: 119.2 | F8: 3.5
A9: 四、教育支出 | B9: 28738 | C9: 25777 | D9: 35043 | E9: 135.9 | F9: 21.9
A10: 五、科学技术支出 | B10: 5271 | C10: 5430 | D10: 5629 | E10: 103.7 | F10: 6.8
A11: 六、文化体育与传媒支出 | B11: 768 | C11: 834 | D11: 1048 | E11: 125.7 | F11: 36.5
A12: 七、社会保障和就业支出 | B12: 10833 | C12: 12148 | D12: 14419 | E12: 118.7 | F12: 33.1
A13: 八、医疗卫生与计划生育支出 | B13: 9348 | C13: 10203 | D13: 10743 | E13: 105.3 | F13: 14.9
A14: 九、节能环保支出 | B14: 2433 | C14: 223 | D14: 5948 | E14: 443.1 | F14: -59.4
A15: 十、城乡社区支出 | B15: 27101 | C15: 20348 | D15: 40177 | E15: 197.4 | F15: 48.2
A16: 十一、农林水支出 | B16: 16256 | C16: 10657 | D16: 14644 | E16: 137.4 | F16: -9.9
A17: 十二、交通运输支出 | B17: 1006 | C17: 1138 | D17: 1492 | E17: 131.1 | F17: 48.3
A18: 十三、资源勘探信息等支出 | B18: 7083 | C18: 6549 | D18: 5592 | E18: 85.4 | F18: -21.1
A19: 十四、商业服务业等支出 | B19: 5202 | C19: 1978 | D19: 3558 | E19: 179.9 | F19: -31.6
A20: 十五、金融支出 | B20: 40 | C20: 59 | D20: 4 | E20: 6.8 | F20: -90.0
A21: 十六、援助其他地区支出
A22: 十七、国土海洋气象等支出 | B22: 15636 | C22: 358 | D22: 14097 | E22: 166.8 | F22: -9.8
A23: 十八、住房保障支出 | B23: 4833 | C23: 6949 | D23: 9284 | E23: 133.6 | F23: 39.1
A24: 十九、粮油物资储备支出
A25: 二十、预备费 | C25: 1500 | E25: 0.0
A26: 二十一、债务付息支出 | B26: 2804 | C26: 6388 | D26: 8782 | E26: 137.5 | F26: 213.2
A27: 二十二、其他支出 | C27: 30 | D27: 357 | E27: 1190.0
A28: 本年支出合计 | B28: =SUM(B6:B27) -> 173166 | C28: =SUM(C6:C27) -> 148907 | D28: =SUM(D6:D27) -> 207354 | E28: 139.3 | F28: 19.7
A29: 转移性支出 | B29: =SUM(B30:B33) -> 137820 | C29: =SUM(C30:C33) -> 149045 | D29: 141056
A30: 原体制上解支出 | B30: 3895 | C30: 3895 | D30: 3895
A31: 专项上解支出 | B31: 118642 | C31: 145150 | D31: 130268
A32: 增设预算周转金和预算稳定调节基金等 | B32: 6913
A33: 结转下年支出 | B33: 8370 | D33: 6893
A34: 支出总计 | B34: =B28+B29 -> 310986 | C34: =C28+C29 -> 297952 | D34: =D28+D29 -> 348410
A35: 另外：地方政府置换一般债券还本支出 | B35: 167800 | C35: 12400 | D35: 12400

Sheet 三2017基金收入
A1: 表三
A2: 2017年经技区政府性基金预算收入执行情况表
D3: 单位：万元
A4: 项 目 | B4: 2016年 决算数 | C4: 2017年 预算数 | D4: 2017年执行数
C5: 金额 | D5: 金额 | E5: 占预算% | F5: 比上年 增长%
A6: 一、港口建设费收入
A7: 二、散装水泥专项资金收入
A8: 三、新型墙体材料专项基金收入 | B8: 1862 | D8: 252 | F8: =(D8/B8-1)*100 -> -86.5
A9: 四、城市公用事业附加收入
A10: 五、国有土地收益基金收入
A11: 六、农业土地开发资金收入
A12: 七、国有土地使用权出让收入
A13: 八、彩票公益金收入
A14: 九、城市基础设施配套费收入 | B14: 807 | C14: 1200 | D14: 3815 | E14: =D14/C14*100 -> 317.9 | F14: =(D14/B14-1)*100 -> 372.7
A15: 十、污水处理费收入
A16: 十一、彩票发行机构和彩票销售机构的业务费用
A17: 十二、其他政府性基金收入
A19: 本年收入合计 | B19: =SUM(B6:B18) -> 2669 | C19: =SUM(C6:C18) -> 1200 | D19: 4067 | E19: =D19/C19*100 -> 338.9 | F19: =(D19/B19-1)*100 -> 52.4
A20: 转移性收入 | B20: =SUM(B21:B24) -> 86523 | C20: =SUM(C21:C24) -> 76296 | D20: =SUM(D21:D24) -> 85692
A21: 地方政府新增专项债券收入 | B21: 11000 | C21: 20000 | D21: 20000
A22: 上级补助收入 | B22: 46218 | C22: 54415 | D22: 63811
A23: 上年结转及结余收入 | B23: 1020 | C23: 1881 | D23: 1881
A24: 调入资金 | B24: 28285
A25: 收入总计 | B25: =B19+B20 -> 89192 | C25: =C19+C20 -> 77496 | D25: =D19+D20 -> 89759
A26: 另外：地方政府置换专项债券收入 | B26: 133400 | C26: 9000 | D26: 9000

Sheet 四2017基金支出
A1: 表四
A2: 2017年经技区政府性基金预算支出执行情况表
D3: 单位：万元
A4: 项 目 | B4: 2016年 决算数 | C4: 2017年 预算数 | D4: 2017年执行数
C5: 金额 | D5: 金额 | E5: 占预算% | F5: 比上年 增长%
A6: 一、文化体育传媒支出 | D6: 52
A7: 二、社会保障和就业支出 | B7: 403 | C7: 599 | D7: 343 | E7: =D7/C7*100 -> 57.3 | F7: =(D7/B7-1)*100 -> -14.9
A8: 大中型水库移民后期扶持基金支出 | B8: 338 | C8: 599 | D8: 343 | E8: =D8/C8*100 -> 57.3 | F8: =(D8/B8-1)*100 -> 1.5
A9: 小型水库移民扶助基金及对应专项债务收入安排的支出 | B9: 65
A10: 三、城乡社区支出 | B10: 84714 | C10: 71038 | D10: 77759 | E10: 109.5 | F10: -8.2
A11: 国有土地使用权出让收入及对应专项债务收入安排的支出 | B11: 78698 | C11: 59850 | D11: 70397 | E11: 117.6 | F11: -10.5
A12: 城市公用事业附加及对应专项债务收入安排的支出
A13: 国有土地收益基金及对应专项债务收入安排的支出 | B13: 2711 | C13: 8969 | D13: 3232 | E13: 36.0 | F13: 19.2
A14: 农业土地开发资金及对应专项债务收入安排的支出 | B14: 891 | C14: 1010 | D14: 530 | E14: 52.5 | F14: -40.5
A15: 新增建设用地有偿使用费及对应专项债务收入安排的支出 | B15: 1614
A16: 城市基础设施配套费及对应专项债务收入安排的支出 | B16: 800 | C16: 1209 | D16: 3600 | E16: 297.8 | F16: 350.0
A17: 污水处理费收入及对应专项债务收入安排的支出
A18: 四、交通运输支出
A19: 港口建设费及对应债务收入安排的支出
A20: 民航发展基金支出
A21: 五、资源勘探信息等支出 | B21: 589 | C21: 1273 | D21: 147 | E21: 11.5 | F21: -75.0
A22: 散装水泥专项资金及对应专项债务收入安排的支出
A23: 新型墙体材料专项基金及对应专项债务收入安排的支出 | B23: 589 | C23: 1273 | D23: 147 | E23: 11.5 | F23: -75.0
A24: 六、商业服务业等支出 | B24: 2 | C24: 9 | D24: 9 | E24: 100.0 | F24: 350.0
A25: 旅游发展基金支出 | B25: 2 | C25: 9 | D25: 9 | E25: 100.0 | F25: 350.0
A26: 七、其他支出 | B26: 610 | C26: 205 | D26: 806 | E26: 393.2 | F26: 32.1
A27: 其他政府性基金及对应专项债务收入安排的支出
A28: 彩票发行销售机构业务费安排的支出
A29: 彩票公益金及对应专项债务收入安排的支出 | B29: 610 | C29: 205 | D29: 806 | E29: 393.2 | F29: 32.1
A30: 八、文化体育与传媒支出 | B30: 33 | C30: 5 | E30: 0.0
A31: 国家电影事业发展专项资金及对应专项债务收入安排的支出 | B31: 33 | C31: 5 | E31: 0.0
A32: 九、 债务付息支出 | B32: 151 | C32: 4367 | D32: 4367 | E32: 100.0 | F32: 2792.1
A33: 本年基金支出合计 | B33: =SUM(B6,B7,B10,B18,B21,B24,B26,B30,B32) -> 86502 | C33: =SUM(C6,C7,C10,C18,C21,C24,C26,C30,C32) -> 77496 | D33: 83483 | E33: 107.7 | F33: -3.5
A34: 转移性支出 | B34: =SUM(B35:B37) -> 2690 | C34: =SUM(C35:C37) -> 0 | D34: 6276
A35: 上解上级支出 | B35: 130 | D35: 29
A36: 调出资金 | B36: 679
A37: 累计结转结余 | B37: 1881 | D37: 6247
A38: 支出总计 | B38: =B33+B34 -> 89192 | C38: =C33+C34 -> 77496 | D38: =D33+D34 -> 89759
A39: 另外：地方政府置换专项债券还本支出 | B39: 133400 | C39: 9000 | D39: 9000

Sheet 五2017社保基金收入情况表
A1: 表五
A2: 2017年经技区社会保险基金预算收入执行情况表
F3: 单位：万元
A4: 项 目 | B4: 2016年 决算数 | C4: 2017年 预算数 | D4: 2017年执行数
D5: 金额 | E5: 占预算% | F5: 增长%
A6: 一、企业职工基本养老保险基金收入
A7: 二、机关事业单位基本养老保险基金收入 | B7: 5789 | C7: 6338 | D7: 5986 | E7: =D7/C7*100 -> 94.4 | F7: =(D7/B7-1)*100 -> 3.4
A8: 其中：保险费收入 | B8: 4395 | C8: 5292 | D8: 5962 | E8: 112.7 | F8: 35.7
A9: 利息收入 | B9: 6 | C9: 1 | D9: 24
A10: 财政补贴收入 | B10: 1387 | C10: 1045
A11: 三、居民基本养老保险基金收入
A12: 四、职工基本医疗保险基金收入
A13: 五、居民基本医疗保险基金收入
A14: 六、工伤保险基金收入
A15: 七、失业保险基金收入
A16: 八、生育保险基金收入
A17: 收入合计 | B17: 5789 | C17: 6338 | D17: 5986 | E17: 94.4 | F17: 3.4
A18: 上年结余 | B18: 143 | C18: 32 | D18: 32
A19: 收入总计 | B19: 5932 | C19: 6370 | D19: 6018

Sheet 六2017社保基金支出情况表
A1: 表六
A2: 2017年经技区社会保险基金预算支出执行情况表
F3: 单位：万元
A4: 项 目 | B4: 2016年 决算数 | C4: 2017年预算数 | D4: 2017年执行数
D5: 金额 | E5: 占预算% | F5: 增长%
A6: 一、企业职工基本养老保险基金支出
A7: 二、机关事业单位基本养老保险基金支出 | B7: 5900 | C7: 6197 | D7: 4113 | E7: =D7/C7*100 -> 66.4 | F7: =(D7/B7-1)*100 -> -30.3
A8: 其中：基本养老金支出 | B8: 5900 | C8: 6197 | D8: 4113 | E8: 66.4 | F8: -30.3
A9: 其他支出
A10: 转移支出
A11: 三、居民基本养老保险基金支出
A12: 四、职工基本医疗保险基金支出
A13: 五、居民基本医疗保险基金支出
A14: 六、工伤保险基金支出
A15: 七、失业保险基金支出
A16: 八、生育保险基金支出
A17: 支出合计 | B17: 5900 | C17: 6197 | D17: 4113 | E17: 66.4 | F17: -30.3
A18: 当年收支结余 | B18: -111 | C18: 141 | D18: 1873
A19: 滚存结余 | B19: 32 | C19: 173 | D19: 1905
A20: 支出总计 | B20: 5932 | C20: 6370 | D20: 6018

Sheet 七上级一般性补助及税收返还收入
A1: 表七
A2: 2017年市级对经技区一般性转移支付及税收返还情况表
B3: 单位：万元
A4: 项 目 | B4: 金 额
A5: 总 额 | B5: =SUM(B6,B15) -> 37887
A6: 一、一般性转移支付 | B6: =SUM(B7:B14) -> 31271
A7: 均衡性转移支付收入 | B7: 622
A8: 县级基本财力保障机制奖补资金收入 | B8: 262
A9: 农村综合改革转移支付收入 | B9: 687
A10: 城乡义务教育转移支付收入 | B10: 1350
A11: 固定数额补助收入 | B11: 1274
A12: 基本养老保险金转移支付收入 | B12: 1175
A13: 城乡居民医疗保险转移支付收入 | B13: 593
A14: 其他一般性转移支付收入 | B14: 25308
A15: 二、返还性收入 | B15: 6616
A16: 消费税税收返还收入 | B16: 127
A17: 增值税税收返还收入 | B17: 1711
A18: 所得税基数返还收入 | B18: 2565
A19: 营业税基数返还收入 | B19: 329
A20: 增值税“五五分享”税收返还收入 | B20: 1884

Sheet 八上级专款来源
A1: 表八
A2: 2017年市级对经技区专项转移支付情况表
B3: 单位：万元
A4: 项 目 | B4: 金 额
A5: 一、一般公共服务 | B5: 40
A6: 二、国防 | B6: 1
A7: 三、公共安全 | B7: 59
A8: 四、教育 | B8: 141
A9: 五、科学技术 | B9: 522
A10: 六、文化体育与传媒 | B10: 231
A11: 七、社会保障和就业 | B11: 340
A12: 八、医疗卫生与计划生育 | B12: 23
A13: 九、节能环保 | B13: 1832
A14: 十、城乡社区 | B14: 5000
A15: 十一、农林水 | B15: 2111
A16: 十二、交通运输 | B16: 1168
A17: 十三、工业商业金融等 | B17: 2866
A18: 十四、国土海洋气象等 | B18: 14490
A19: 十五、住房保障 | B19: 4377
A20: 十六、其他
A21: 合 计 | B21: =SUM(B5:B20) -> 33201

Sheet 九地方政府债务
A1: 表九
A2: 2017年经技区地方政府债务限额余额情况表
E3: 单位：亿元
A4: 债务类型 | B4: 2016年政府 债务余额 | C4: 2017年新增 债券限额 | D4: 2017年政府 债务限额 | E4: 2017年政府 债务余额
A5: 合计 | B5: 46.4 | C5: 2 | D5: 49.6 | E5: 48.3
A6: 一般 | B6: 31.1 | D6: 32.2 | E6: 31.0
A7: 专项 | B7: 15.3 | C7: 2.0 | D7: 17.4 | E7: 17.3
A8: 注：2017年政府债务余额为债务系统内数据。
